bitfinex/quotes_BTCUSD_20251117
["timestamp","ask_amount","ask_price","bid_price","bid_amount"]
[1763389967066,9e-05,94800.0,94751.0,0.02110795]
[1763389967067,0.00213173,94799.0,94773.0,0.36641874]
[1763389967282,0.00213173,94799.0,94728.0,0.07595082]
[1763389967283,0.00213173,94799.0,94777.0,1.4669]
[1763389967500,0.00213173,94799.0,94775.0,4.840419]
[1763389967723,0.00213173,94799.0,94774.0,0.0333]
[1763389967724,0.02402,94860.0,94791.0,4.840419]
[1763389967948,0.14800178,94872.0,94774.0,0.0333]
[1763389967949,0.00488176,94834.0,94800.0,0.00999999]
[1763389968186,0.00488176,94834.0,94810.0,0.00999999]
[1763389968409,0.00488176,94834.0,94812.0,0.7471]
[1763389968629,0.00488176,94834.0,94801.0,2.479]
[1763389968847,0.00488176,94834.0,94801.0,1.798]
[1763389969086,0.00488176,94834.0,94803.0,0.8021]
[1763389969305,0.00488176,94834.0,94802.0,0.0543966]
[1763389969306,0.00488176,94834.0,94808.0,0.04341874]
[1763389969529,0.00488176,94834.0,94816.0,0.04341874]
[1763389969751,0.00488176,94834.0,94818.0,0.04341874]
[1763389969986,0.00488176,94834.0,94802.0,0.0333]
[1763389970238,0.04384,94833.0,94762.0,0.7467]
[1763389970484,0.04384,94833.0,94762.0,0.3225]
[1763389970485,0.05841847,94833.0,94762.0,0.3225]
[1763389970709,0.323,94811.0,94764.0,0.4361]
[1763389970929,0.04341874,94810.0,94732.0,0.4363]
[1763389971157,0.04341874,94794.0,94733.0,0.02111196]
[1763389971386,0.01999998,94800.0,94731.0,0.002]
[1763389971387,0.36641874,94792.0,94731.0,0.002]
[1763389971602,0.0017184,94734.0,94731.0,0.002]
[1763389971841,0.02402,94732.0,94731.0,0.002]
[1763389972054,0.02402,94751.0,94731.0,0.002]
[1763389972273,0.04384,94750.0,94731.0,0.00243927]
[1763389972506,0.323,94737.0,94731.0,0.00243927]
[1763389972727,0.04384,94750.0,94731.0,0.00243927]
[1763389972974,0.04384,94750.0,94731.0,0.00343927]
[1763389973221,0.323,94757.0,94731.0,0.00243927]
[1763389973442,0.04384,94756.0,94731.0,0.00243927]
[1763389973656,0.323,94757.0,94731.0,0.00243927]
[1763389974132,0.01999998,94800.0,94731.0,0.00243927]
[1763389974133,0.323,94784.0,94731.0,0.00243927]
[1763389974390,0.04384,94784.0,94733.0,0.04341874]
[1763389974610,0.00999999,94820.0,94731.0,0.00243927]
[1763389974611,0.10416178,94782.0,94731.0,0.00243927]
[1763389975031,0.04673,94788.0,94734.0,0.04341874]
[1763389975252,0.01999998,94820.0,94739.0,0.8669]
[1763389975253,0.001,94757.0,94739.0,0.8669]
[1763389975487,0.001,94757.0,94740.0,0.0211104]
[1763389975706,0.001,94757.0,94744.0,0.36641874]
[1763389975946,0.001,94757.0,94748.0,0.04341874]
[1763389976170,0.02279,94793.0,94741.0,2.0784]
[1763389976389,0.04341874,94792.0,94742.0,0.01990382]
[1763389976605,0.001,94788.0,94740.0,0.00013173]
[1763389977078,0.323,94775.0,94740.0,0.00013173]
[1763389977307,0.04673,94774.0,94740.0,0.00013173]
[1763389977547,0.10416178,94791.0,94740.0,4.84055073]
[1763389977548,0.00191234,94741.0,94740.0,4.84055073]
[1763389977766,0.00191234,94741.0,94740.0,0.00013173]
[1763389978423,0.00191234,94741.0,94740.0,4.84055073]
[1763389978642,0.00191234,94741.0,94740.0,5.20696947]
[1763389978861,0.04673,94815.0,94743.0,0.36641874]
[1763389979077,0.04673,94815.0,94746.0,4.840419]
[1763389979286,0.04673,94815.0,94765.0,3.0801]
[1763389979483,0.04673,94815.0,94764.0,0.04341874]
[1763389979484,0.67007911,94790.0,94768.0,0.04341874]
[1763389979696,0.67007911,94790.0,94772.0,0.04341874]
[1763389979902,0.67007911,94790.0,94763.0,0.10416178]
[1763389979903,0.67007911,94800.0,94778.0,0.10416178]
[1763389980114,0.67007911,94800.0,94779.0,0.02110172]
[1763389980313,0.67007911,94800.0,94764.0,0.04341874]
[1763389980314,0.67007911,94789.0,94764.0,0.04341874]
[1763389980525,0.67007911,94780.0,94765.0,4.840419]
[1763389980727,0.67007911,94780.0,94764.0,0.04341874]
[1763389980932,0.00043892,94780.0,94768.0,0.04341874]
[1763389981151,0.00043892,94780.0,94763.0,0.10416178]
[1763389981152,0.002,94799.0,94780.0,0.00999999]
[1763389981378,0.002,94799.0,94783.0,0.04341874]
[1763389981610,0.002,94799.0,94782.0,0.36641874]
[1763389981844,0.002,94799.0,94785.0,4.840419]
[1763389982063,0.002,94799.0,94783.0,0.02110083]
[1763389982064,0.002,94799.0,94790.0,0.04341874]
[1763389982299,0.002,94799.0,94796.0,0.04341874]
[1763389982534,0.002,94799.0,94798.0,4.88383774]
[1763389982777,0.002,94799.0,94798.0,5.20683774]
[1763389983019,0.00475008,94834.0,94811.0,0.04341874]
[1763389983238,0.02279,94896.0,94823.0,0.35741874]
[1763389983492,0.02279,94896.0,94813.0,0.323]
[1763389983493,0.67007911,94880.0,94830.0,0.00999999]
[1763389983742,0.67007911,94880.0,94844.0,0.323]
[1763389983953,0.01655551,94882.0,94849.0,0.323]
[1763389984185,0.00243946,94879.0,94843.0,0.323]
[1763389984398,0.67007911,94870.0,94841.0,4.840419]
[1763389984631,0.67007911,94870.0,94796.0,0.07595082]
[1763389984632,0.67007911,94870.0,94832.0,0.323]
[1763389984846,0.67007911,94870.0,94842.0,0.323]
[1763389985067,0.67007911,94870.0,94845.0,0.7141]
[1763389985304,0.67007911,94870.0,94860.0,0.10416178]
[1763389985552,0.67007911,94870.0,94837.0,0.323]
[1763389985776,0.67007911,94870.0,94831.0,0.10416178]
[1763389985777,0.00243946,94879.0,94851.0,0.04341874]
[1763389985984,0.00243946,94879.0,94857.0,0.04341874]
[1763389986201,0.00243946,94879.0,94859.0,2.4633]
[1763389986415,0.00243946,94879.0,94840.0,0.01999998]
[1763389986416,0.67007911,94870.0,94804.0,0.07595082]
[1763389986628,0.00243946,94879.0,94820.0,0.00999999]
[1763389986629,0.67007911,94850.0,94820.0,0.00999999]
[1763389986900,0.67007911,94850.0,94810.0,0.00999999]
[1763389987106,0.002,94879.0,94832.0,4.86150892]
[1763389987334,0.002,94879.0,94832.0,0.1591]
[1763389987335,0.67007911,94860.0,94832.0,0.1591]
[1763389987545,0.002,94879.0,94822.0,0.3832]
[1763389987546,0.67007911,94842.0,94822.0,0.3832]
[1763389987767,0.67021081,94842.0,94822.0,0.3832]
[1763389988015,0.67021081,94842.0,94806.0,0.10416178]
[1763389988238,0.67007911,94831.0,94808.0,1.8846]
[1763389988457,0.0001317,94842.0,94807.0,0.01041618]
[1763389988458,0.0001317,94842.0,94822.0,4.840419]
[1763389988668,0.0001317,94842.0,94824.0,2.7423]
[1763389988882,0.0001317,94842.0,94824.0,3.3037]
[1763389989098,0.0001317,94842.0,94825.0,0.01284878]
[1763389989317,0.0001317,94842.0,94822.0,0.001]
[1763389989556,0.0001317,94842.0,94763.0,0.10416178]
[1763389989557,0.60243088,94835.0,94763.0,0.10416178]
[1763389989796,0.04673,94841.0,94763.0,0.10416178]
[1763389989797,0.60243088,94820.0,94763.0,0.10416178]
[1763389990012,0.60243088,94810.0,94763.0,0.10416178]
[1763389990223,0.60243088,94810.0,94772.0,0.01867499]
[1763389990452,0.60243088,94790.0,94763.0,0.08316178]
[1763389990667,0.60243088,94790.0,94763.0,0.06185595]
[1763389990891,0.60243088,94790.0,94736.0,1.3216]
[1763389991112,0.60243088,94790.0,94751.0,4.840419]
[1763389991335,0.60243088,94780.0,94737.0,3.4646]
[1763389991549,0.04673,94797.0,94737.0,3.3486]
[1763389991766,0.60243088,94780.0,94736.0,0.00043892]
[1763389991971,0.06024309,94779.0,94736.0,0.00043892]
[1763389992178,0.60243088,94780.0,94743.0,0.10416178]
[1763389992383,0.60243088,94780.0,94745.0,2.2066]
[1763389992595,0.04673,94800.0,94743.0,0.10416178]
[1763389992822,0.04673,94800.0,94745.0,4.840419]
[1763389992823,0.60243088,94800.0,94745.0,4.840419]
[1763389993037,0.60243088,94800.0,94748.0,0.323]
[1763389993276,0.04673,94814.0,94744.0,0.5936]
[1763389993277,0.60243088,94780.0,94744.0,0.5936]
[1763389993483,0.323,94796.0,94745.0,0.02110929]
[1763389993694,0.323,94796.0,94692.0,0.07595082]
[1763389993695,0.60243088,94770.0,94692.0,0.07595082]
[1763389993942,0.60243088,94770.0,94651.0,0.002]
[1763389993943,0.60243088,94750.0,94700.0,0.00999999]
[1763389994148,0.60243088,94750.0,94680.0,0.20999999]
[1763389994375,0.60243088,94750.0,94704.0,0.10416178]
[1763389994605,0.60243088,94770.0,94705.0,0.3441182]
[1763389994821,0.60243088,94770.0,94705.0,0.323]
[1763389994822,0.323,94769.0,94705.0,0.323]
[1763389995029,0.02279,94781.0,94754.0,0.10416178]
[1763389995246,0.00124637,94786.0,94755.0,0.02110706]
[1763389995454,0.60243088,94790.0,94754.0,0.10416178]
[1763389995665,0.001,94800.0,94754.0,0.10416178]
[1763389995666,0.60243088,94770.0,94754.0,0.10416178]
[1763389995882,0.60243088,94770.0,94739.0,0.10416178]
[1763389996326,0.60243088,94780.0,94740.0,0.0211104]
[1763389996536,0.04673,94789.0,94740.0,0.0211104]
[1763389996737,0.60243088,94780.0,94739.0,0.10416178]
[1763389996958,0.60243088,94760.0,94736.0,0.00043892]
[1763389997462,0.60243088,94746.0,94704.0,0.0956007]
[1763389997672,0.60243088,94746.0,94705.0,4.840419]
[1763389997876,0.60243088,94746.0,94707.0,2.7414]
[1763389998086,0.323,94763.0,94723.0,0.10416178]
[1763389998087,0.60243088,94750.0,94723.0,0.10416178]
[1763389998300,0.60243088,94770.0,94725.0,1.8537]
[1763389998524,0.60243088,94770.0,94727.0,2.9242]
[1763389998751,0.60243088,94770.0,94706.0,0.04341874]
[1763389998752,0.60243088,94750.0,94677.0,0.1801126]
[1763389998961,0.60243088,94736.0,94677.0,0.10416178]
[1763389999170,0.60243088,94736.0,94704.0,0.10530567]
[1763389999384,0.60243088,94736.0,94704.0,0.09573243]
[1763389999603,0.02244,94705.0,94704.0,0.00013173]
[1763389999817,0.02244,94705.0,94704.0,0.00113173]
[1763390000028,0.06778,94705.0,94704.0,0.00113173]
[1763390000243,0.074558,94705.0,94640.0,0.0004]
[1763390000459,0.60243088,94701.0,94691.0,0.00213181]
[1763390000704,0.323,94700.0,94691.0,0.00213181]
[1763390001105,0.02244,94705.0,94691.0,0.00213181]
[1763390001314,0.323,94709.0,94691.0,0.00213181]
[1763390001536,0.02244,94717.0,94691.0,0.00213181]
[1763390001747,0.60243088,94730.0,94691.0,0.00213181]
[1763390002215,0.60243088,94750.0,94692.0,4.840419]
[1763390002476,0.60243088,94750.0,94693.0,0.02112088]
[1763390002693,0.60243088,94750.0,94692.0,4.840419]
[1763390002905,0.00999999,94780.0,94695.0,0.323]
[1763390002906,0.60243088,94730.0,94695.0,0.323]
[1763390003145,0.60243088,94750.0,94696.0,2.64272021]
[1763390003367,0.60243088,94730.0,94692.0,3.8431]
[1763390003636,0.60243088,94750.0,94694.0,4.840419]
[1763390003849,0.60243088,94750.0,94691.0,0.00213181]
[1763390003850,0.60243088,94750.0,94696.0,4.840419]
[1763390004055,0.04534,94773.0,94691.0,0.00213181]
[1763390004056,0.60243088,94760.0,94700.0,0.04341874]
[1763390004264,0.33568177,94800.0,94704.0,0.36641874]
[1763390004265,0.60243088,94770.0,94704.0,0.36641874]
[1763390004476,0.60243088,94770.0,94712.0,0.36641874]
[1763390004684,0.02244,94785.0,94692.0,4.840419]
[1763390004685,0.60243088,94750.0,94692.0,4.840419]
[1763390004897,0.60243088,94730.0,94694.0,0.1897]
[1763390005102,0.60243088,94730.0,94695.0,0.02112043]
[1763390005310,0.60243088,94730.0,94652.0,0.02113003]
[1763390005757,0.12622178,94749.0,94652.0,0.02113003]
[1763390005758,0.0476,94729.0,94691.0,0.00176181]
[1763390006619,0.0476,94729.0,94692.0,0.8558]
[1763390006829,0.0476,94729.0,94693.0,0.02112088]
[1763390007045,0.60243088,94710.0,94691.0,0.00176181]
[1763390007486,0.323,94727.0,94691.0,0.00176181]
[1763390007487,0.02206,94722.0,94691.0,0.00176181]
[1763390007696,0.323,94727.0,94691.0,0.00176181]
[1763390007910,0.0476,94726.0,94691.0,0.00176181]
[1763390008116,0.60243088,94730.0,94692.0,4.761419]
[1763390008339,0.323,94739.0,94694.0,4.761419]
[1763390008553,0.02206,94749.0,94695.0,0.02112043]
[1763390008789,0.00024922,94750.0,94709.0,0.10416178]
[1763390008991,0.00024922,94750.0,94711.0,1.8688]
[1763390009196,0.00024922,94750.0,94712.0,0.02111664]
[1763390009402,0.00024922,94750.0,94713.0,0.32]
[1763390009624,0.00024922,94750.0,94710.0,4.761419]
[1763390009837,0.0476,94749.0,94692.0,1.6234]
[1763390010075,0.00024922,94750.0,94691.0,0.00176181]
[1763390010076,0.00024922,94750.0,94712.0,0.10416178]
[1763390010277,0.0476,94749.0,94713.0,0.02111642]
[1763390010488,0.00024922,94750.0,94713.0,0.02111642]
[1763390010699,0.00024922,94750.0,94691.0,0.00176181]
[1763390010700,0.00024922,94750.0,94692.0,0.04341874]
[1763390010907,0.00024922,94750.0,94713.0,0.10416178]
[1763390011116,0.10416178,94749.0,94692.0,4.4609]
[1763390011323,0.04784922,94750.0,94703.0,0.10416178]
[1763390011533,0.04784922,94750.0,94704.0,0.02111843]
[1763390011744,0.04784922,94750.0,94691.0,0.00176181]
[1763390011745,0.04341874,94747.0,94691.0,0.00176181]
[1763390011959,0.323,94733.0,94691.0,0.00176181]
[1763390012196,0.10416178,94731.0,94691.0,0.02288314]
[1763390012405,0.10416178,94731.0,94691.0,0.00176181]
[1763390012677,0.3706,94730.0,94691.0,0.02112133]
[1763390012895,0.3706,94730.0,94674.0,0.319]
[1763390013111,0.3706,94730.0,94674.0,0.00013196]
[1763390013112,0.323,94713.0,94674.0,0.00013196]
[1763390013317,0.09507618,94729.0,94674.0,0.01916245]
[1763390013529,0.01024921,94750.0,94675.0,1.4567]
[1763390013530,0.0476,94730.0,94675.0,1.4567]
[1763390013740,0.323,94727.0,94675.0,0.7906]
[1763390013967,0.323,94727.0,94674.0,0.00013196]
[1763390014233,0.0476,94726.0,94674.0,0.00013196]
[1763390014459,0.10416178,94725.0,94674.0,0.00013196]
[1763390014705,0.0476,94726.0,94677.0,0.323]
[1763390014924,0.0476,94726.0,94681.0,0.323]
[1763390015179,0.0476,94726.0,94682.0,0.02112333]
[1763390015375,0.001,94731.0,94684.0,0.323]
[1763390015622,0.00024922,94750.0,94689.0,0.04341874]
[1763390015855,0.00024922,94750.0,94701.0,0.04341874]
[1763390016099,0.00024922,94750.0,94705.0,0.323]
[1763390016328,0.00024922,94750.0,94709.0,0.323]
[1763390016561,0.00024922,94750.0,94713.0,0.323]
[1763390016781,0.00024922,94750.0,94714.0,0.0211162]
[1763390017002,0.15176178,94749.0,94695.0,0.323]
[1763390017233,0.16696288,94748.0,94696.0,0.01042937]
[1763390017456,0.0476,94748.0,94697.0,1.2527]
[1763390017707,0.00013161,94749.0,94699.0,4.761419]
[1763390017927,0.15176178,94748.0,94696.0,0.01042937]
[1763390018156,0.323,94747.0,94697.0,0.1195]
[1763390018378,0.323,94747.0,94694.0,0.10416178]
[1763390018379,0.3706,94747.0,94694.0,0.10416178]
[1763390018611,0.0476,94746.0,94695.0,0.02112043]
[1763390018828,0.0476,94746.0,94696.0,2.3718]
[1763390019052,0.0476,94746.0,94697.0,0.02111999]
[1763390019270,0.03709808,94745.0,94698.0,0.01252818]
[1763390019505,0.03709808,94745.0,94694.0,0.10416178]
[1763390019506,0.10416178,94740.0,94694.0,0.10416178]
[1763390019723,0.10416178,94740.0,94695.0,0.02112043]
[1763390019931,0.04341874,94738.0,94674.0,0.15]
[1763390020146,0.323,94724.0,94672.0,0.10416178]
[1763390020383,0.01902148,94723.0,94673.0,0.01041618]
[1763390020586,0.01902148,94723.0,94676.0,0.323]
[1763390020798,0.06662148,94737.0,94678.0,4.761419]
[1763390021051,0.0476,94722.0,94673.0,0.01041618]
[1763390021283,0.0476,94722.0,94672.0,0.07218326]
[1763390021284,0.12318326,94721.0,94674.0,0.02620349]
[1763390021543,0.12318326,94721.0,94675.0,4.761419]
[1763390021544,0.01902148,94721.0,94675.0,4.761419]
[1763390021765,0.10416178,94738.0,94674.0,0.00825994]
[1763390021766,0.15176178,94720.0,94674.0,0.00825994]
[1763390021987,0.01902148,94719.0,94676.0,0.01794429]
[1763390022211,0.00024922,94750.0,94680.0,0.323]
[1763390022212,0.01902148,94736.0,94680.0,0.323]
[1763390022451,0.001,94745.0,94679.0,4.80483774]
[1763390022452,0.01902148,94745.0,94684.0,0.323]
[1763390022679,0.0192707,94750.0,94689.0,0.36641874]
[1763390022921,0.00038086,94750.0,94691.0,0.36641874]
[1763390023159,0.00038086,94750.0,94690.0,4.86531322]
[1763390023160,0.00038086,94750.0,94702.0,4.761419]
[1763390023431,0.00038086,94750.0,94713.0,0.04341874]
[1763390023713,0.00038086,94750.0,94719.0,0.323]
[1763390023961,0.00038086,94750.0,94723.0,0.323]
[1763390024219,0.00038086,94750.0,94725.0,4.1452]
[1763390024462,0.00038086,94750.0,94728.0,4.761419]
[1763390024745,0.00038086,94750.0,94730.0,2.2442]
[1763390025020,0.00038086,94750.0,94727.0,0.10416178]
[1763390025282,0.00038086,94750.0,94728.0,0.020922]
[1763390025554,0.00038086,94750.0,94729.0,0.04480838]
[1763390025770,0.00038086,94750.0,94730.0,0.02092155]
[1763390026193,0.00038086,94750.0,94728.0,0.001]
[1763390026402,0.00038086,94750.0,94728.0,0.02111308]
[1763390026608,0.00038086,94750.0,94728.0,0.02211308]
[1763390027033,0.00038086,94750.0,94728.0,0.001]
[1763390027255,0.0476,94749.0,94728.0,0.001]
[1763390027466,0.01902148,94748.0,94728.0,0.001]
[1763390028012,0.00038086,94750.0,94728.0,0.001]
[1763390028747,0.00038086,94750.0,94732.0,0.10416178]
[1763390028980,0.00038086,94750.0,94733.0,0.03162813]
[1763390029210,0.00038086,94750.0,94733.0,0.02111195]
[1763390029431,0.00038086,94750.0,94713.0,0.10416178]
[1763390029672,0.0476,94749.0,94714.0,0.0211162]
[1763390029888,0.00038086,94750.0,94714.0,0.0211162]
[1763390030526,0.0182001,94750.0,94713.0,0.10416178]
[1763390030739,0.0182001,94750.0,94714.0,0.03036692]
[1763390030946,0.00038086,94750.0,94714.0,0.01041618]
[1763390031152,0.01940234,94750.0,94714.0,0.02978342]
[1763390031386,0.00038086,94750.0,94715.0,4.761419]
[1763390031598,0.00038086,94750.0,94714.0,0.02978342]
[1763390031599,0.00038086,94750.0,94716.0,0.01938454]
[1763390031814,0.00038086,94750.0,94717.0,4.77481525]
[1763390032023,0.00038086,94750.0,94719.0,4.761419]
[1763390032245,0.00038086,94750.0,94721.0,4.7511]
[1763390032456,0.00038086,94750.0,94722.0,0.02065306]
[1763390032679,0.00038086,94750.0,94723.0,1.9555]
[1763390032925,0.00038086,94750.0,94734.0,0.10416178]
[1763390033146,0.00038086,94750.0,94735.0,0.02111151]
[1763390033566,0.00038086,94750.0,94734.0,0.10416178]
[1763390033786,0.00038086,94750.0,94714.0,0.3071]
[1763390034029,0.00038086,94750.0,94713.0,0.10416178]
[1763390034265,0.0476,94749.0,94713.0,0.10416178]
[1763390034491,0.01902148,94748.0,94714.0,0.0211162]
[1763390034714,0.00670023,94747.0,94713.0,0.10416178]
[1763390034953,0.34202148,94746.0,94698.0,0.10416178]
[1763390035173,0.323,94746.0,94699.0,0.02111954]
[1763390035364,0.06576148,94745.0,94700.0,2.1187]
[1763390035639,0.06576148,94745.0,94699.0,4.755539]
[1763390035857,0.06576148,94745.0,94700.0,2.9025]
[1763390036114,0.323,94743.0,94698.0,0.10416178]
[1763390036328,0.15751601,94744.0,94698.0,0.10416178]
[1763390036329,0.02638745,94742.0,94698.0,0.10416178]
[1763390036539,0.02638745,94742.0,94699.0,0.0124552]
[1763390036762,0.04674,94741.0,94698.0,0.10416178]
[1763390036975,0.04674,94741.0,94699.0,0.01041618]
[1763390036976,0.01924949,94740.0,94699.0,0.01041618]
[1763390037160,0.01924949,94740.0,94699.0,0.02287138]
[1763390037637,0.00038086,94750.0,94699.0,0.02287138]
[1763390037638,0.00038086,94750.0,94700.0,2.4411]
[1763390037872,0.00038086,94750.0,94714.0,0.10416178]
[1763390038111,0.00038086,94750.0,94715.0,0.01245309]
[1763390038345,0.00038086,94750.0,94714.0,0.10416178]
[1763390038346,0.00038086,94750.0,94716.0,0.00059583]
[1763390038559,0.0077313,94750.0,94716.0,0.00059583]
[1763390038771,0.0077313,94750.0,94714.0,0.10416178]
[1763390038772,0.04674,94749.0,94714.0,0.10416178]
[1763390038980,0.02638578,94748.0,94714.0,0.10416178]
[1763390039213,0.02638578,94748.0,94699.0,0.01041618]
[1763390039434,0.02638578,94748.0,94695.0,0.07483444]
[1763390039435,0.04341874,94746.0,94695.0,0.07483444]
[1763390039649,0.04341874,94744.0,94696.0,0.01220963]
[1763390039858,0.04341874,94744.0,94661.0,0.13383204]
[1763390039859,0.04341874,94742.0,94677.0,0.07483444]
[1763390040075,0.04341874,94742.0,94679.0,4.755539]
[1763390040076,0.04341874,94740.0,94679.0,4.755539]
[1763390040286,0.04341874,94738.0,94680.0,0.01245821]
[1763390040554,0.00038086,94750.0,94682.0,4.755539]
[1763390040778,0.00038086,94750.0,94703.0,4.755539]
[1763390041001,0.00038086,94750.0,94691.0,0.323]
[1763390041002,0.00038086,94750.0,94711.0,0.07483444]
[1763390041229,0.00038086,94750.0,94691.0,0.323]
[1763390041230,0.02837158,94799.0,94752.0,4.755539]
[1763390041450,0.02837158,94799.0,94750.0,0.00999999]
[1763390041451,0.00243954,94799.0,94764.0,0.04341874]
[1763390041663,0.00243954,94799.0,94765.0,0.09069932]
[1763390041886,0.00243954,94799.0,94770.0,1.4724]
[1763390042104,0.00243954,94799.0,94753.0,0.323]
[1763390042105,0.00243954,94799.0,94772.0,4.755539]
[1763390042320,0.00243954,94799.0,94760.0,0.09522059]
[1763390042548,0.00243954,94799.0,94742.0,4.500099]
[1763390042766,0.00243954,94799.0,94741.0,0.323]
[1763390042767,0.04674,94798.0,94741.0,4.49251774]
[1763390042996,0.01787624,94797.0,94742.0,0.00059765]
[1763390043221,0.00243954,94799.0,94752.0,0.323]
[1763390043461,0.00243954,94799.0,94740.0,0.00999999]
[1763390043692,0.00243954,94799.0,94732.0,0.323]
[1763390043693,0.04674,94798.0,94732.0,0.323]
[1763390043914,0.00243954,94799.0,94745.0,0.323]
[1763390044145,0.00343954,94799.0,94752.0,0.323]
[1763390044431,0.00343954,94799.0,94756.0,0.323]
[1763390044663,0.00343954,94799.0,94758.0,4.815518]
[1763390044884,0.02206,94840.0,94758.0,4.815518]
[1763390044885,0.0002,94850.0,94770.0,0.00999999]
[1763390045100,0.00213183,94839.0,94782.0,0.323]
[1763390045333,0.00213183,94839.0,94786.0,0.323]
[1763390045565,0.00213183,94839.0,94794.0,0.323]
[1763390045785,0.00213183,94839.0,94797.0,4.492518]
[1763390046008,0.00213183,94839.0,94800.0,0.323]
[1763390046226,0.00213183,94839.0,94804.0,0.323]
[1763390046452,0.00213183,94839.0,94790.0,0.00999999]
[1763390046453,0.00213183,94839.0,94820.0,0.00999999]
[1763390046680,0.00213183,94839.0,94824.0,0.323]
[1763390046906,0.0002,94850.0,94827.0,4.492518]
[1763390047155,0.0002,94850.0,94830.0,0.323]
[1763390047371,0.0002,94850.0,94834.0,4.492518]
[1763390047587,0.0002,94850.0,94839.0,0.36641874]
[1763390047808,0.0002,94850.0,94842.0,4.492518]
[1763390048285,0.0002,94850.0,94843.0,0.00029837]
[1763390048497,0.0002,94900.0,94853.0,0.36641874]
[1763390048710,0.0002,94900.0,94857.0,0.323]
[1763390048924,0.0002,94900.0,94861.0,0.323]
[1763390049138,0.0002,94900.0,94863.0,0.323]
[1763390049359,0.0002,94900.0,94856.0,0.36641874]
[1763390049612,0.0214,94962.0,94890.0,0.00999999]
[1763390049834,0.0214,94962.0,94861.0,4.53593674]
[1763390049835,0.01255618,94961.0,94911.0,4.492518]
[1763390050057,0.01255618,94961.0,94883.0,0.323]
[1763390050058,0.04772659,94961.0,94920.0,0.00999999]
[1763390050277,0.04772659,94961.0,94880.0,0.2]
[1763390050278,0.07306687,94960.0,94886.0,0.04341874]
[1763390050504,0.00949066,94959.0,94887.0,4.492518]
[1763390050725,0.00949066,94959.0,94873.0,4.492518]
[1763390050726,0.1304892,94958.0,94873.0,4.492518]
[1763390050944,0.02632742,94958.0,94883.0,0.04341874]
[1763390051171,0.02632742,94958.0,94884.0,4.492518]
[1763390051387,0.02632742,94958.0,94885.0,0.04341874]
[1763390051604,0.00949066,94959.0,94891.0,0.04341874]
[1763390051819,0.0214,94961.0,94892.0,0.04341874]
[1763390052037,0.07306687,94960.0,94893.0,4.492518]
[1763390052254,0.001,94958.0,94874.0,4.492518]
[1763390052473,0.36641874,94944.0,94891.0,0.002]
[1763390052689,0.10416178,94945.0,94891.0,0.002]
[1763390052690,0.36641874,94929.0,94891.0,0.002]
[1763390052904,0.04341874,94927.0,94891.0,0.002]
[1763390053116,0.00392897,94892.0,94891.0,4.494518]
[1763390053586,0.00392897,94892.0,94891.0,0.002]
[1763390053799,0.00392897,94892.0,94891.0,1.9773]
[1763390054015,0.0040607,94892.0,94891.0,0.7466]
[1763390054244,0.001,94944.0,94891.0,0.7466]
[1763390054245,0.001,94944.0,94892.0,0.323]
[1763390054480,0.001,94944.0,94891.0,4.817518]
[1763390054481,0.00143911,94944.0,94896.0,0.323]
[1763390054713,0.00143911,94944.0,94902.0,0.36641874]
[1763390054924,0.00143911,94944.0,94941.0,0.10416178]
[1763390055138,0.00143911,94944.0,94942.0,0.00105326]
[1763390055346,0.00143911,94944.0,94928.0,0.7745]
[1763390055563,0.00043911,94944.0,94927.0,4.492518]
[1763390055793,0.00043911,94944.0,94926.0,0.10416178]
[1763390055794,0.00043911,94944.0,94928.0,4.815518]
[1763390056015,0.00043911,94944.0,94932.0,0.323]
[1763390056225,0.00043911,94944.0,94935.0,4.492518]
[1763390056447,0.00043911,94944.0,94927.0,4.1814]
[1763390056656,0.45067985,94999.0,94942.0,0.001]
[1763390056657,0.10416178,94984.0,94942.0,0.001]
[1763390056865,0.04341874,94955.0,94912.0,0.01915]
[1763390057093,0.04341874,94953.0,94912.0,0.01915]
[1763390057341,0.01999998,94980.0,94912.0,0.01915]
[1763390057342,0.01663304,94974.0,94932.0,0.001]
[1763390057558,0.10416178,94999.0,94933.0,4.476518]
[1763390057772,30.0001,95000.0,94933.0,4.476518]
[1763390057773,30.0001,95000.0,94936.0,0.323]
[1763390057989,0.10366938,94997.0,94940.0,0.323]
[1763390058202,0.00013174,94998.0,94944.0,0.323]
[1763390058436,0.02644808,94998.0,94946.0,0.323]
[1763390058659,0.02644808,94998.0,94950.0,0.323]
[1763390058868,0.02644808,94998.0,94954.0,0.323]
[1763390059077,0.02744808,94998.0,94969.0,0.10416178]
[1763390059295,0.02744808,94998.0,94970.0,0.323]
[1763390059296,0.00113174,94998.0,94970.0,0.323]
[1763390059502,0.00113174,94998.0,94973.0,0.9405]
[1763390059737,0.00013174,94998.0,94972.0,3.6267]
[1763390059959,0.002,94984.0,94973.0,0.349]
[1763390060181,0.002,94984.0,94955.0,0.02124]
[1763390060404,0.04737,94983.0,94938.0,0.02124]
[1763390060621,0.04737,94983.0,94933.0,4.476518]
[1763390060622,0.02632077,94982.0,94933.0,4.476518]
[1763390060852,0.02632077,94982.0,94934.0,0.00747022]
[1763390061070,0.323,94996.0,94935.0,0.323]
[1763390061294,0.02631717,94995.0,94939.0,0.323]
[1763390061514,0.10366938,94994.0,94958.0,0.10416178]
[1763390061731,0.323,94996.0,94958.0,0.10416178]
[1763390061732,0.02631772,94993.0,94959.0,0.00902849]
[1763390061955,0.02279,95011.0,94959.0,0.02988849]
[1763390062205,0.323,95015.0,94959.0,0.35288849]
[1763390062418,0.323,95015.0,94960.0,0.02086]
[1763390062642,0.04737,95022.0,94960.0,0.02086]
[1763390062855,0.04737,95036.0,94975.0,0.10416178]
[1763390063079,0.04737,95036.0,94976.0,0.01041618]
[1763390063301,0.323,95034.0,94976.0,0.02086]
[1763390063540,0.04737,95036.0,94976.0,0.02086]
[1763390064514,0.002,95039.0,94979.0,4.476518]
[1763390064748,0.002,95039.0,94979.0,3.8256]
[1763390065025,0.002,95039.0,94981.0,4.476518]
[1763390065245,0.002,95039.0,94981.0,3.7409]
[1763390065450,0.002,95039.0,94975.0,0.10416178]
[1763390065451,0.002,95039.0,94983.0,4.476518]
[1763390065873,0.002,95039.0,94975.0,0.10416178]
[1763390065874,0.002,95039.0,94997.0,0.10416178]